bitfinex/quotes_ETHUSD_20220226
["timestamp","ask_amount","ask_price","bid_price","bid_amount"]
[1645878432499,0.60326816,2749.7,2749.6,0.01767521]
[1645878432896,0.60326816,2749.7,2749.6,0.05803328]
[1645878433100,2.1954685,2749.7,2749.6,0.04035807]
[1645878433537,2.1954685,2749.7,2749.5,0.04092649]
[1645878433740,0.08026816,2749.6,2749.5,0.04092649]
[1645878433944,4.5,2749.5,2749.0,0.00336172]
[1645878434141,4.01559704,2749.4,2748.8,0.00336172]
[1645878434342,4.01559704,2749.4,2748.7,7.45]
[1645878434343,0.08026816,2749.3,2748.7,7.45]
[1645878434538,0.523,2749.2,2748.7,7.45]
[1645878434741,0.08026816,2749.1,2748.7,7.45]
[1645878435742,0.08026816,2749.1,2748.8,0.00480782]
[1645878436643,0.08026816,2749.1,2748.7,7.45]
[1645878436848,0.08026816,2749.1,2748.8,0.00480779]
[1645878436849,12.46325,2749.0,2748.8,0.00480779]
[1645878437043,0.08026816,2748.9,2748.8,0.00480779]
[1645878437330,26.67126816,2748.9,2748.8,0.00480779]
[1645878437529,11.03,2748.7,2748.4,0.01923403]
[1645878437730,11.94052,2748.5,2748.4,0.01923403]
[1645878437929,12.54378816,2748.5,2748.1,0.25807723]
[1645878438127,12.54378816,2748.5,2748.1,0.00807723]
[1645878438128,0.08026816,2748.4,2748.1,0.00807723]
[1645878438330,0.523,2748.3,2748.1,0.00807723]
[1645878438528,0.08026816,2748.2,2748.1,0.00807723]
[1645878438727,0.60326816,2748.2,2748.1,0.00807723]
[1645878438931,0.523,2748.2,2748.1,0.00807723]
[1645878439729,1.43351,2748.2,2748.1,0.00807723]
[1645878440131,12.46351,2748.2,2748.1,0.00807723]
[1645878440332,1.51040462,2748.2,2748.1,0.00807723]
[1645878440534,5.01040462,2748.2,2748.1,0.00807723]
[1645878440737,1.43351,2748.2,2748.1,0.00807723]
[1645878441142,0.523,2748.2,2748.1,0.00807723]
[1645878441341,3.1595,2748.8,2748.1,0.00807723]
[1645878441342,0.523,2748.6,2748.1,0.00807723]
[1645878441543,3.1595,2748.8,2748.1,0.00807723]
[1645878441942,0.07687528,2748.7,2748.1,0.00807723]
[1645878442842,0.98721528,2748.7,2748.1,0.00807723]
[1645878443044,0.07687528,2748.6,2748.3,0.00497824]
[1645878443261,0.91034,2748.7,2748.3,0.00497824]
[1645878443448,0.07688059,2748.6,2748.3,0.00497824]
[1645878443849,0.07688059,2748.6,2748.1,0.00807723]
[1645878444049,0.59988059,2748.6,2748.1,0.00807723]
[1645878444253,0.523,2748.6,2748.3,0.00497821]
[1645878444449,0.523,2748.6,2748.5,0.00796884]
[1645878444680,0.59988129,2748.6,2748.5,0.00796884]
[1645878445486,0.523,2748.6,2748.5,0.00796884]
[1645878446690,0.07688146,2748.6,2748.5,0.00796884]
[1645878447089,1.89763146,2748.7,2748.5,0.00796884]
[1645878447291,3.6825,2748.8,2748.5,0.00796884]
[1645878447888,3.6825,2748.8,2748.5,0.01285362]
[1645878448738,0.523,2748.8,2748.5,0.00796884]
[1645878448939,0.523,2748.8,2748.5,0.01264471]
[1645878449342,0.01955361,2748.7,2748.5,0.01264471]
[1645878450342,1.84030361,2748.7,2748.5,0.01264471]
[1645878450747,0.01955361,2748.7,2748.5,0.01264471]
[1645878451745,0.01955361,2748.7,2748.5,1.81835514]
[1645878452209,0.01955361,2748.7,2748.5,2.11367927]
[1645878453212,0.01955361,2748.7,2748.5,2.11800987]
[1645878453609,0.01955361,2748.7,2748.5,13.14367927]
[1645878453809,0.01955361,2748.7,2748.5,3.11367927]
[1645878454010,4.50748,2750.1,2748.8,0.01879816]
[1645878454209,0.07685547,2750.0,2748.8,0.01879816]
[1645878454409,0.07685547,2750.0,2749.3,1.33051206]
[1645878456035,0.07685547,2750.0,2749.1,0.00336543]
[1645878456036,0.90999,2749.8,2749.1,0.00336543]
[1645878456237,0.07685547,2749.7,2749.0,1.1875]
[1645878458445,0.07685547,2749.7,2748.8,0.02216359]
[1645878458647,0.91016,2749.4,2748.8,0.01879816]
[1645878458844,0.91016,2749.4,2748.8,0.03639684]
[1645878458845,0.07685547,2749.3,2748.8,0.03639684]
[1645878459690,0.07685547,2749.3,2748.8,0.01879816]
[1645878461893,3.57685547,2749.3,2748.8,0.01879816]
[1645878462095,0.07685547,2749.2,2748.8,0.01879816]
[1645878462494,0.07685547,2749.1,2748.8,0.01879816]
[1645878462797,0.59985547,2749.1,2748.8,0.01879816]
[1645878462995,0.07685547,2749.0,2748.8,0.01879816]
[1645878465142,0.07685547,2748.9,2748.8,0.01879816]
[1645878465543,0.07685547,2749.2,2748.8,0.01879816]
[1645878467182,0.523,2749.7,2748.8,0.01879816]
[1645878467183,0.07685547,2749.1,2748.8,0.01879816]
[1645878467387,0.07685547,2749.0,2748.8,0.01879816]
[1645878467587,0.68171888,2749.6,2748.8,0.01879816]
[1645878467990,0.75858124,2749.6,2748.8,0.01879816]
[1645878468588,0.91011,2749.5,2748.8,0.01879816]
[1645878468889,0.07686236,2749.4,2748.8,0.01879816]
[1645878470488,0.68171888,2749.6,2748.8,0.01879816]
[1645878470940,2.11474888,2749.7,2749.2,1.34653022]
[1645878471135,0.68171888,2749.6,2749.2,1.34653022]
[1645878471340,1.59174888,2749.7,2748.8,0.01879816]
[1645878471838,0.68171888,2749.6,2748.8,0.01879816]
[1645878472440,0.68171888,2749.6,2749.0,1.02683209]
[1645878473243,4.60074888,2749.7,2748.8,0.0363064]
[1645878473445,0.68171888,2749.6,2748.8,0.0363064]
[1645878473643,1.59183888,2749.5,2748.8,0.0363064]
[1645878473842,0.68171888,2749.4,2748.8,0.0363064]
[1645878474043,1.59183888,2749.5,2748.8,0.01879816]
[1645878474244,0.68171888,2749.5,2748.9,1.33422385]
[1645878474898,0.68171888,2749.4,2748.8,0.01879816]
[1645878476002,0.68171888,2749.5,2748.8,0.01879816]
[1645878476199,0.68171888,2749.6,2748.8,0.01879816]
[1645878477300,0.68171888,2749.6,2749.1,1.10509781]
[1645878477906,0.68171888,2749.7,2749.1,1.09563814]
[1645878478103,0.91014634,2750.0,2749.1,1.45833814]
[1645878478104,0.68171888,2750.0,2749.1,1.45833814]
[1645878478310,0.68171888,2750.1,2749.2,0.00336543]
[1645878478949,0.68171888,2750.2,2749.2,0.00336543]
[1645878479140,0.68171888,2749.9,2749.2,0.00336543]
[1645878479349,0.0008,2750.3,2749.2,0.00336543]
[1645878479350,0.68171888,2750.0,2749.2,0.00336543]
[1645878479745,0.68171888,2750.1,2749.2,0.00336543]
[1645878481745,0.68171888,2750.2,2749.2,0.00336543]
[1645878482191,0.68171888,2750.2,2749.8,1.19502466]
[1645878482589,0.68251888,2750.3,2749.8,1.19502466]
[1645878482789,0.0008,2750.3,2749.8,1.19502466]
[1645878483189,0.0008,2750.3,2749.8,2.36240937]
[1645878483394,0.0008,2750.3,2749.8,13.69240937]
[1645878483797,0.0008,2750.3,2750.0,11.3927]
[1645878484196,0.0008,2750.3,2750.0,13.60198]
[1645878485395,0.0008,2750.3,2750.0,1.6627]
[1645878485593,0.0008,2750.3,2750.0,2.5719782]
[1645878485794,0.0008,2750.3,2750.0,2.8719782]
[1645878486454,0.0008,2750.3,2750.0,13.9019782]
[1645878486654,0.0008,2750.3,2750.0,12.9019782]
[1645878486856,0.0008,2750.3,2750.0,13.9019782]
[1645878487057,0.0008,2750.3,2750.0,2.5092782]
[1645878487256,0.0008,2750.3,2750.0,0.6]
[1645878487455,0.0008,2750.3,2749.9,4.1679]
[1645878487658,0.0008,2750.3,2749.8,3.98630937]
[1645878487659,0.0008,2750.3,2749.8,2.79128471]
[1645878488054,0.0008,2750.3,2749.8,0.02518471]
[1645878489700,0.0008,2750.3,2749.6,1.1977]
[1645878490104,0.0008,2750.3,2749.2,2.71056543]
[1645878490105,0.523,2750.2,2749.2,2.71056543]
[1645878490301,4.023,2750.2,2749.2,2.71056543]
[1645878490503,1.66850675,2750.1,2749.2,2.71056543]
[1645878490704,4.78156675,2750.0,2749.2,2.71056543]
[1645878491002,0.07684787,2749.9,2749.2,0.00336543]
[1645878491201,0.59984787,2749.9,2749.0,0.25336543]
[1645878491406,0.91,2749.8,2749.0,0.00336543]
[1645878491604,0.59984787,2749.7,2749.0,0.00336543]
[1645878491802,0.07684787,2749.6,2748.8,0.03972497]
[1645878492003,3.57684787,2749.6,2748.8,0.03972497]
[1645878492205,3.57684787,2749.6,2748.8,0.02216359]
[1645878492206,0.07684787,2749.5,2748.8,0.02216359]
[1645878492403,0.07684787,2749.5,2748.8,0.03635845]
[1645878493206,0.07684787,2749.5,2748.8,0.01879816]
[1645878494176,0.523,2749.8,2749.0,1.02537631]
[1645878494177,0.07684787,2749.4,2749.0,1.02537631]
[1645878494373,0.07684787,2749.3,2749.0,0.92283868]
[1645878494572,0.07684787,2749.2,2748.8,0.01879816]
[1645878494773,0.523,2749.8,2748.8,0.01879816]
[1645878494974,0.07685351,2749.7,2748.9,1.4988798]
[1645878495175,0.07685351,2749.7,2749.0,0.00336543]
[1645878495373,0.07685351,2749.7,2748.9,1.4988798]
[1645878496176,0.68171888,2749.9,2749.0,1.10475501]
[1645878496177,0.07685351,2749.6,2749.0,1.10475501]
[1645878496373,0.07685351,2749.5,2749.0,1.10812044]
[1645878496574,0.07685351,2749.4,2749.0,1.10475501]
[1645878496778,0.07685351,2749.3,2748.8,0.03637024]
[1645878496978,0.68171888,2750.0,2748.9,1.49918106]
[1645878497194,0.07684896,2749.9,2749.0,0.00336543]
[1645878497498,0.07684896,2749.8,2749.0,1.50254649]
[1645878497698,0.68171888,2750.2,2749.0,1.80254649]
[1645878497899,0.07764896,2750.3,2749.0,1.80254649]
[1645878497900,0.75936784,2750.3,2749.4,1.10317855]
[1645878498100,0.07684896,2750.2,2749.4,1.10317855]
[1645878498300,0.68251888,2750.3,2749.4,1.10317855]
[1645878498301,0.07684896,2750.1,2749.4,1.10317855]
[1645878498499,0.68251888,2750.3,2749.4,1.10317855]
[1645878498500,0.07684896,2750.0,2749.4,1.10317855]
[1645878498698,0.0008,2750.3,2749.4,1.10317855]
[1645878498699,0.07684896,2749.9,2749.4,1.10317855]
[1645878498898,0.07684896,2749.8,2749.4,1.46587855]
[1645878499102,0.0008,2750.3,2749.9,1.1795602]
[1645878499302,0.0008,2750.3,2749.5,0.3627]
[1645878499503,0.0008,2750.3,2749.3,0.3627]
[1645878499702,0.07763453,2750.3,2749.3,0.3627]
[1645878499902,0.07763453,2750.3,2749.4,1.49866672]
[1645878499903,0.07683453,2750.2,2749.4,1.49866672]
[1645878500103,0.0008,2750.3,2749.5,1.49866672]
[1645878500104,0.07683453,2750.1,2749.5,1.49866672]
[1645878500304,0.07683453,2750.0,2749.6,1.11068774]
[1645878500506,0.07683453,2749.9,2749.6,1.11068774]
[1645878500705,0.07683453,2749.9,2749.2,0.9627]
[1645878500706,0.07683453,2749.8,2749.2,1.6627]
[1645878500953,0.0008,2750.3,2749.4,0.3627]
[1645878501961,0.07763856,2750.3,2749.6,1.25351918]
[1645878502157,0.07683856,2750.2,2749.1,4.4124]
[1645878502358,0.0008,2750.3,2749.2,1.49837095]
[1645878502359,0.07683856,2750.1,2749.2,1.49837095]
[1645878502556,0.07683856,2750.0,2749.2,1.49837095]
[1645878502757,0.07683856,2749.9,2749.2,1.49837095]
[1645878502957,0.07683856,2749.8,2749.2,1.49837095]
[1645878503157,0.07683856,2749.7,2749.2,2.5860116]
[1645878503456,0.68171888,2750.3,2749.3,1.49837095]
[1645878503658,0.07684329,2750.2,2749.3,1.49837095]
[1645878503857,0.68171888,2750.4,2749.3,1.49837095]
[1645878503858,0.07684329,2750.1,2749.3,1.49837095]
[1645878504058,0.07684329,2750.0,2749.3,1.49837095]
[1645878504265,0.07684329,2749.9,2749.3,1.49837095]
[1645878504462,0.07684329,2749.8,2749.3,1.49837095]
[1645878504687,0.07684329,2749.7,2749.3,1.49837095]
[1645878504895,0.68171888,2750.3,2749.3,1.49837095]
[1645878505093,0.07684241,2750.2,2749.3,1.49837095]
[1645878505295,0.07684241,2750.1,2749.3,1.49837095]
[1645878505497,0.07684241,2750.0,2749.3,1.49837095]
[1645878505696,0.00438794,2750.5,2749.3,1.49837095]
[1645878505697,0.07684241,2749.9,2749.3,1.49837095]
[1645878505901,0.07684241,2749.8,2749.1,2.7497]
[1645878506097,0.68171888,2750.2,2749.1,2.7497]
[1645878506098,0.07684241,2749.7,2749.1,2.7497]
[1645878506297,0.68171888,2750.1,2749.1,2.7497]
[1645878506501,0.07684241,2750.0,2749.1,2.7497]
[1645878506697,0.07684241,2749.9,2749.0,5.36386543]
[1645878506896,0.07684241,2749.8,2749.1,1.49911431]
[1645878507100,0.07684241,2749.7,2749.0,5.36386543]
[1645878507297,0.68171888,2749.9,2749.0,5.36386543]
[1645878507298,0.07684241,2749.6,2749.0,5.36386543]
[1645878507497,0.68171888,2749.9,2749.0,0.00336543]
[1645878507498,0.07684241,2749.5,2749.0,0.00336543]
[1645878507698,0.07684241,2749.4,2748.9,0.00785764]
[1645878507898,0.07684241,2749.3,2748.9,0.00785764]
[1645878508098,0.07684241,2749.2,2748.9,0.00785764]
[1645878508298,1.59167888,2749.9,2748.9,0.00785764]
[1645878508543,0.07685416,2749.8,2748.9,0.00785764]
[1645878509142,0.02485416,2749.7,2749.0,1.49996785]
[1645878509340,0.68171888,2749.9,2749.0,2.74932187]
[1645878509544,0.68171888,2749.9,2749.0,1.24935402]
[1645878511548,0.68171888,2749.9,2748.9,0.00785764]
[1645878511847,0.68171888,2750.0,2748.9,0.00785764]
[1645878512793,0.68171888,2750.0,2749.1,1.25732373]
[1645878513797,0.68171888,2750.0,2749.1,1.55732373]
[1645878514001,0.68171888,2750.2,2749.6,1.21057904]
[1645878514201,0.68171888,2750.2,2749.2,0.1454]
[1645878515404,0.68171888,2750.2,2749.2,3.6454]
[1645878515604,0.91492127,2750.5,2749.2,3.6454]
[1645878515605,0.68171888,2750.3,2749.2,3.6454]
[1645878515804,0.68171888,2750.3,2749.2,4.6454]
[1645878516757,0.68171888,2750.3,2749.3,1.2440103]
[1645878516954,0.68171888,2750.2,2749.3,1.2440103]
[1645878517956,0.68171888,2750.1,2749.3,1.2440103]
[1645878518761,0.68171888,2750.1,2749.4,3.5]
[1645878518958,0.68171888,2750.1,2749.3,1.2440103]
[1645878519161,0.68171888,2750.1,2749.4,3.5]
[1645878520203,0.68171888,2750.1,2749.3,1.2440103]
[1645878522303,0.91014634,2750.4,2749.3,1.2440103]
[1645878522304,0.68171888,2750.2,2749.3,1.2440103]
[1645878523211,0.68171888,2750.1,2749.3,1.2440103]
[1645878523447,0.68171888,2750.0,2749.3,1.2440103]
[1645878523848,0.68171888,2750.1,2749.4,3.5]
[1645878524252,0.68171888,2750.1,2749.3,1.2440103]
[1645878525261,0.68171888,2750.3,2749.4,19.8927]
[1645878525556,0.686356,2750.5,2749.7,5.0]
[1645878525757,0.68171888,2750.6,2749.8,3.5]
[1645878526158,0.68171888,2750.6,2749.7,1.3]
[1645878526359,0.68171888,2750.6,2749.8,4.69830552]
[1645878526360,0.00463728,2750.5,2749.8,4.69830552]
[1645878526560,0.00463728,2750.5,2749.8,4.99830552]
[1645878526758,0.00463728,2750.5,2749.8,5.99830552]
[1645878526960,0.68171888,2750.6,2749.8,5.99830552]
[1645878527213,0.0046376,2750.5,2749.8,6.90773002]
[1645878527599,0.0046376,2750.5,2749.8,17.93773002]
[1645878527803,0.0046376,2750.5,2749.8,18.84709002]
[1645878528002,0.0046376,2750.5,2749.9,1.1983]
[1645878528204,0.68171888,2750.8,2750.0,4.7093235]
[1645878528405,0.00463764,2750.5,2750.0,4.65493401]
[1645878528606,0.00463764,2750.5,2750.1,11.3927]
[1645878528805,0.00463764,2750.5,2750.2,14.53]
[1645878529009,0.00463764,2750.5,2750.2,14.83]
[1645878529207,0.07681899,2750.4,2750.3,1.5097126]
[1645878529506,0.07681899,2750.4,2750.3,5.0097126]
[1645878529706,0.07681828,2750.4,2750.3,6.01000374]
[1645878529906,0.00463785,2750.5,2750.3,6.01000374]
[1645878530107,0.00463785,2750.5,2750.4,5.01000374]
[1645878530410,0.08145618,2750.5,2750.4,5.01000374]
[1645878530607,0.07681833,2750.5,2750.4,5.01000374]
[1645878530807,0.07681833,2750.5,2750.4,6.24341629]
[1645878531546,0.07681833,2750.5,2750.4,1.51000374]
[1645878531745,0.07681833,2750.5,2750.1,1.1556]
[1645878531949,0.00391766,2751.3,2749.9,5.6076]
[1645878531950,0.07681833,2750.4,2749.9,5.6076]
[1645878532149,0.07681833,2750.3,2750.0,1.50960774]
[1645878532350,0.07681833,2750.3,2749.8,4.3669]
[1645878532548,0.07681833,2750.2,2749.9,1.50960779]
[1645878532749,0.07681833,2750.1,2749.9,1.50960779]
[1645878532953,0.07681833,2750.0,2749.9,1.50960779]
[1645878533148,0.07681833,2750.0,2749.9,8.78250779]
[1645878533349,0.00464815,2750.5,2749.9,8.78250779]
[1645878533549,0.07681833,2750.4,2750.0,1.50960779]
[1645878534351,0.07681833,2750.3,2750.0,1.50960779]
[1645878534551,0.07681833,2750.2,2750.0,1.50960779]
[1645878534810,0.07681833,2750.1,2750.0,1.50960779]
[1645878535211,0.07681833,2750.4,2750.0,1.50960779]
[1645878535409,0.07681833,2750.3,2750.0,1.50960779]
[1645878535611,0.68171888,2750.7,2750.0,1.50960779]
[1645878535612,0.00464674,2750.5,2750.0,1.50960779]
[1645878535811,0.07681833,2750.4,2750.0,1.50960779]
[1645878536711,0.07681833,2750.3,2750.0,1.50960779]
[1645878536909,0.07681833,2750.2,2750.0,1.50960779]
[1645878537109,0.07681833,2750.1,2750.0,1.50960779]
[1645878537311,0.07681833,2750.4,2750.0,1.50960779]
[1645878537511,0.07681833,2750.1,2750.0,1.50960779]
[1645878537713,0.68636578,2750.5,2749.9,7.2729]
[1645878537910,0.08073599,2751.1,2749.9,7.2729]
[1645878537911,0.07681833,2750.4,2749.9,7.2729]
[1645878538115,0.07681833,2750.3,2750.0,1.50946157]
[1645878538311,0.07681833,2750.4,2750.0,1.50946157]
[1645878538542,0.07681833,2750.3,2750.0,2.93601509]
[1645878538744,0.07681833,2750.2,2750.1,1.50955413]
[1645878538945,0.07681833,2750.2,2750.0,1.27559811]
[1645878539145,0.07681833,2750.1,2750.0,1.27559811]
[1645878539345,0.004647,2750.5,2750.0,2.78796596]
[1645878539544,0.07681833,2750.4,2750.1,1.51236785]
[1645878539748,0.07681833,2750.4,2749.9,7.2729]
[1645878539947,0.07681833,2750.4,2750.0,1.51235065]
[1645878540351,0.07681833,2750.3,2750.0,1.51235065]
[1645878540553,0.004647,2750.5,2750.0,1.51235065]
[1645878540757,0.07681833,2750.4,2750.0,1.51235065]
[1645878541759,0.07681833,2750.3,2750.0,1.51235065]
[1645878541953,0.07681833,2750.2,2750.0,1.51235065]
[1645878542226,0.00464705,2750.5,2750.0,1.51235065]
[1645878542227,0.07681833,2750.1,2750.0,1.51235065]
[1645878542417,0.07681833,2750.1,2749.9,7.2729]
[1645878542717,0.68171888,2750.4,2749.9,7.2729]
[1645878542718,0.07681833,2750.0,2749.9,7.2729]
[1645878543320,0.75853721,2750.0,2749.9,7.2729]
[1645878543517,0.68171888,2750.0,2749.9,7.2729]
[1645878543717,1.50996467,2750.2,2749.9,7.2729]
[1645878543916,0.07681833,2750.1,2749.9,7.2729]
[1645878544117,1.50996467,2750.1,2749.9,7.2729]
[1645878544315,0.07681833,2750.0,2749.9,7.2729]
[1645878544516,0.59981833,2750.0,2749.9,7.2729]
[1645878546362,1.28243862,2750.0,2749.9,7.2729]
[1645878546561,0.07681833,2750.0,2749.9,7.2729]
[1645878546963,0.68262029,2750.1,2749.9,7.2729]
[1645878547564,0.07681833,2750.0,2749.9,7.2729]
[1645878547960,0.68262029,2750.2,2749.9,7.2729]
[1645878547961,0.75943862,2750.2,2749.9,7.2729]
[1645878548162,0.07681833,2750.1,2749.9,7.2729]
[1645878548361,0.07681833,2750.0,2749.9,7.2729]
[1645878548761,0.68262029,2750.2,2749.9,7.2729]
[1645878548762,0.75943862,2750.2,2749.9,7.2729]
[1645878552210,0.59981833,2750.1,2749.9,7.2729]
[1645878552411,12.53996467,2750.1,2749.9,7.2729]
[1645878552617,0.07681833,2750.0,2749.9,7.2729]
[1645878552812,0.59981833,2750.0,2749.9,7.2729]
[1645878553013,1.50996467,2750.0,2749.9,7.2729]
[1645878553211,2.41997467,2750.0,2749.9,7.2729]
[1645878556563,1.50982833,2750.0,2749.9,7.2729]
[1645878556766,0.07681833,2750.0,2749.9,7.2729]
[1645878557217,0.68228953,2750.0,2749.9,7.2729]
[1645878557405,0.07681833,2750.0,2749.9,7.2729]
[1645878557604,0.68228953,2750.2,2749.9,7.2729]
[1645878557806,0.68228953,2750.3,2749.9,7.2729]
[1645878558007,0.07681833,2750.2,2749.9,7.2729]
[1645878558207,0.07681833,2750.1,2749.9,7.2729]
[1645878558414,0.07681833,2750.0,2749.9,7.2729]
[1645878558612,0.914064,2750.6,2749.9,7.2729]
[1645878558613,0.75910786,2750.3,2749.9,7.2729]
[1645878558813,0.07681833,2750.2,2749.9,7.2729]
[1645878559016,0.68228953,2750.4,2749.9,6.54561001]
[1645878559017,0.07681833,2750.1,2749.9,6.54561001]
[1645878559212,0.07681833,2750.0,2749.9,6.54561001]
[1645878559616,0.07681833,2750.0,2749.9,11.57132237]
[1645878559814,3.2903,2750.7,2749.9,8.07132237]
[1645878559815,0.07681833,2750.4,2749.9,8.07132237]
[1645878560015,0.07681833,2750.3,2750.0,1.52571236]
[1645878560216,0.75910786,2750.6,2749.9,6.54561001]
[1645878560416,0.07681833,2750.5,2749.9,6.54561001]
[1645878560620,0.07681833,2750.4,2750.0,1.52562369]
[1645878560816,0.07681833,2750.3,2749.9,6.54561001]
[1645878561061,0.07681833,2750.2,2749.9,6.54561001]
[1645878561257,0.07681833,2750.1,2749.9,6.54561001]
[1645878561459,0.68228953,2750.4,2749.9,6.54561001]
[1645878561860,0.07681833,2750.0,2749.9,6.54561001]
[1645878562258,0.68228953,2750.3,2749.9,6.54561001]
[1645878562961,0.68228953,2750.3,2749.9,2.48821001]
[1645878562962,11.03,2750.1,2749.9,2.48821001]
[1645878563161,12.53996467,2750.0,2749.9,2.48821001]
[1645878563462,12.53996467,2750.0,2749.9,2.39804487]
[1645878564559,14.36002467,2750.0,2749.9,2.39804487]
[1645878565209,14.36002467,2750.0,2749.1,2.8401141]
[1645878565210,0.91007,2749.8,2749.1,2.8401141]
[1645878565409,0.91007,2749.8,2748.8,0.02216359]
[1645878565410,17.62212864,2749.2,2748.8,0.02216359]
[1645878565610,7.0,2748.8,2748.2,0.00336543]
[1645878565909,7.0,2748.8,2747.9,0.00336543]
[1645878565910,5.0,2748.4,2747.9,0.00336543]
[1645878566109,5.0,2748.4,2747.5,0.00336543]
[1645878566110,0.59981833,2748.3,2747.5,0.00336543]
[1645878566311,0.59981833,2748.3,2747.5,1.50722]
[1645878566312,0.07681833,2748.2,2747.5,1.50722]
[1645878566513,0.07681833,2748.2,2747.6,5.00722]
[1645878566710,0.91032,2749.0,2747.7,1.50722]
[1645878566711,1.20399836,2749.0,2747.7,1.50722]
[1645878566913,1.20399836,2749.0,2747.7,1.51058543]
[1645878566914,0.07687719,2748.9,2747.7,1.51058543]
[1645878567107,0.07687719,2748.9,2747.8,1.51058543]
[1645878567307,0.07687719,2748.9,2747.9,1.50722]
[1645878567507,0.07687719,2748.9,2748.0,0.00336543]
[1645878567908,0.07687719,2748.9,2747.8,1.50463558]
[1645878568107,0.07687719,2748.9,2747.9,1.50800101]
[1645878568310,1.43334,2748.8,2748.3,0.00496433]
[1645878568550,12.01739369,2748.7,2748.3,0.00496433]
[1645878568751,11.62987719,2748.6,2748.3,0.00496433]
[1645878568951,0.07687719,2748.5,2748.3,0.00496433]
[1645878569154,0.07687719,2748.5,2747.4,0.06336543]
[1645878569155,0.523,2748.4,2747.4,0.06336543]
[1645878569458,0.91052,2748.2,2747.5,1.50368851]
[1645878569653,0.91052,2748.2,2747.4,0.06336543]
[1645878569856,0.91052,2748.2,2747.5,1.50243268]
[1645878570053,0.523,2748.1,2747.5,1.50243268]
[1645878570458,0.523,2748.1,2747.4,0.06336543]
[1645878571957,0.523,2748.1,2747.6,0.00496165]
[1645878572814,0.523,2748.1,2747.4,0.06336543]
[1645878573013,0.523,2748.1,2747.7,0.00496158]
[1645878573212,1.4336,2748.1,2747.7,0.00496158]
[1645878573414,2.3442,2748.1,2747.7,0.00496158]
[1645878573618,11.03,2747.9,2747.7,0.00496158]
[1645878573816,11.62989996,2747.8,2747.7,0.00496158]
[1645878574014,11.03,2747.6,2747.4,0.06336543]
[1645878574217,0.59989996,2747.8,2747.4,0.06]
[1645878574218,0.523,2747.5,2747.4,0.06]
[1645878574815,0.523,2747.8,2747.4,0.06]
[1645878576662,0.523,2747.8,2747.5,0.00172613]
[1645878577360,11.03,2747.7,2747.5,0.00172613]
[1645878577560,0.523,2747.7,2747.4,0.06]
[1645878577960,0.523,2747.7,2747.5,0.00496107]
[1645878578863,0.523,2747.7,2747.4,0.06]
[1645878579065,0.523,2747.7,2747.5,0.0049611]
[1645878579263,0.523,2747.7,2747.5,0.0041611]
[1645878580005,0.523,2747.7,2747.4,0.06]
[1645878581406,1.43368,2747.7,2747.4,0.06172244]
[1645878582309,3.0012,2748.7,2747.4,0.06172244]
[1645878582310,2.6578,2748.4,2747.4,0.06172244]
[1645878582508,0.523,2748.6,2747.5,0.1454]
[1645878582710,4.09989111,2748.5,2747.6,0.00336543]
[1645878582907,0.59989111,2748.4,2747.6,0.00336543]
[1645878583108,0.59989111,2748.4,2747.4,0.06496114]
[1645878583307,0.91059,2748.1,2747.4,0.06496114]
[1645878583547,1.43359,2748.1,2747.4,0.06]
[1645878583846,1.43359,2748.1,2747.5,0.00496124]
[1645878584047,0.91059,2748.0,2747.5,0.00496124]
[1645878584855,0.91059,2748.0,2747.4,0.06]
[1645878585053,0.91059,2748.0,2747.5,0.00496124]
[1645878585255,1.43359,2748.0,2747.5,0.00496124]
[1645878586154,1.43359,2748.0,2747.4,0.06]
[1645878586354,1.43359,2748.0,2747.5,0.00496124]
[1645878586854,0.523,2748.0,2747.5,0.00496124]
[1645878587301,0.523,2748.0,2747.4,0.06]
[1645878587503,0.523,2748.0,2747.5,0.00460576]
[1645878588504,0.523,2748.0,2747.4,0.06]
[1645878588703,0.523,2748.0,2747.5,0.00460576]
[1645878589705,0.523,2748.0,2747.4,0.06]
[1645878590115,0.523,2748.0,2747.5,0.00460264]
[1645878590510,0.43202386,2748.0,2747.5,0.00460264]
[1645878590967,0.43202386,2748.0,2747.4,0.06]
[1645878591170,2.25328386,2748.0,2747.5,0.00460264]
[1645878591470,0.91064,2747.9,2747.5,0.00460264]
[1645878591669,0.523,2747.8,2747.5,0.00460264]
[1645878592070,0.523,2747.8,2747.4,0.06]
[1645878592470,0.523,2747.8,2747.5,0.00470792]
[1645878593275,0.523,2747.8,2747.4,0.06]
[1645878593470,0.523,2747.8,2747.5,0.00470792]
[1645878594170,0.91055,2748.3,2747.5,0.00470792]
[1645878594370,0.07689689,2748.2,2747.4,0.06]
[1645878594572,0.59989689,2748.2,2747.4,0.06]
[1645878594840,0.07689689,2748.1,2747.5,0.00470792]
[1645878595037,0.523,2748.0,2747.5,0.00470792]
[1645878595637,0.523,2748.0,2747.4,0.06]
[1645878595841,1.7482,2748.4,2747.4,0.06]
[1645878596038,0.07688967,2748.3,2747.5,0.00461935]
[1645878596237,0.07688967,2748.3,2747.5,1.34471875]
[1645878596739,0.523,2748.6,2747.5,0.00461935]
[1645878596940,0.07688979,2748.5,2747.6,0.00336543]
[1645878597137,0.59988979,2748.5,2747.5,0.00461951]
[1645878597338,0.07688979,2748.4,2747.5,0.00461951]
[1645878598139,0.07688979,2748.4,2747.4,0.06336543]
[1645878598337,0.07688979,2748.4,2747.5,0.00461957]
[1645878599059,0.59988979,2748.4,2747.5,0.00461957]
[1645878599257,0.59988979,2748.4,2747.4,0.06336543]
[1645878599258,0.07688979,2748.3,2747.4,0.06336543]
[1645878599658,0.91045,2748.5,2747.5,0.00462548]
[1645878599859,0.07688931,2748.4,2747.6,1.09061416]
[1645878600060,0.07688931,2748.4,2747.7,0.00336543]
[1645878600265,0.07688931,2748.4,2747.5,0.00462548]
[1645878600461,0.07688931,2748.4,2747.4,0.06]
[1645878600661,0.59988931,2748.4,2747.4,0.06]
[1645878600859,0.07688931,2748.3,2747.5,0.00462559]
[1645878601263,0.98737931,2748.3,2747.5,0.00462559]
[1645878601466,0.07688931,2748.2,2747.5,0.00462559]
[1645878601863,0.07688931,2748.2,2747.4,0.06]
[1645878602064,0.07688931,2748.2,2747.5,0.00462543]
[1645878602914,0.07688931,2748.2,2747.4,0.06]
[1645878603112,0.523,2748.1,2747.5,0.00487279]
[1645878603513,0.07688931,2748.0,2747.5,0.00487279]
[1645878604112,0.07688931,2748.0,2747.4,0.06]
[1645878604312,0.07688931,2748.0,2747.5,0.00487268]
[1645878604917,0.07688931,2748.0,2747.1,1.09873086]
[1645878605116,0.07688931,2747.9,2747.2,1.46414124]